[Event "AUT Bundesliga 2024-25"]
[Site "Austria"]
[Date "2025.04.04"]
[Round "8.16"]
[White "Sebenik, Matej"]
[Black "Hacker, Jonas"]
[Result "1-0"]
[Annotator "TA"]
[ECO "A13"]
[WhiteElo "2491"]
[BlackElo "2370"]
[PlyCount "73"]
[EventDate "2024.08.28"]
[EventType "team-tourn"]
[EventCountry "AUT"]
[SourceTitle "playchess.com"]
[Source "ChessBase"]
[SourceQuality "1"]
[TimeControl "40/5400+30:1800+30"]

{[%evp 9,73,15,4,18,22,24,4,11,13,12,33,42,43,38,80,68,68,65,56,37,41,51,96,93,138,101,106,108,107,85,92,76,275,272,255,246,244,195,302,325,324,219,391,373,373,357,377,350,456,369,381,358,1247,1174,1953,1857,1516,1475,29993,29994,29994,29995,29995,29996,29996,29997]} 1. c4 {[%emt 0:00:06]} Nf6 {[%emt 0:00:53]} 2. Nf3 {[%emt 0:00:28]} e6 {[%emt 0:00:22]} 3. g3 {[%emt 0:00:18]} d5 {[%emt 0:00:08]} 4. Bg2 {[%emt 0:00:05]} dxc4 {[%emt 0:00:35]} 5. Qa4+ {[%emt 0:00:27]} Bd7 {[%emt 0:00:56]} 6. Qxc4 {[%emt 0:00:05] A13: English Opening: 1...e6.} c5 {[%emt 0:00:15]} 7. O-O {[%emt 0:07:27]} Bc6 {[%emt 0:09:41]} 8. Nc3 {[%emt 0:04:52] The position is equal.} Nbd7 {[%emt 0:03:04][%cal Ob7b5]} 9. e4 {[%emt 0:09:08]} Rc8 {[%emt 0:05:51][%cal Ob7b5]} 10. Qe2 {[%emt 0:01:58]} e5 {[%emt 0:06:06]} 11. d3 {[%emt 0:00:05]} g6 $146 {[%emt 0:01:57]} (11... Bd6 12. Nh4 O-O 13. Nf5 Bb8 14. Bg5 h6 15. Be3 b5 16. b3 Kh7 17. Rac1 Ng8 {½-½ Ivanisevic,I (2530)-Culum,S (2311) BIH-chT1 30th 2023 (7.1)}) 12. Bh3 {[%emt 0:22:03]} Bg7 {[%emt 0:04:28]} 13. a3 {[%emt 0:00:08]} a5 {[%emt 0:04:50]} 14. a4 {[%emt 0:03:17]} O-O {[%emt 0:01:49]} 15. Nd2 {[%emt 0:00:06]} Qc7 {[%emt 0:04:47]} 16. Nc4 {[%emt 0:00:18]} b6 {[%emt 0:04:35]} 17. Bg5 {[%emt 0:04:48]} Rb8 {[%emt 0:08:35]} 18. f4 {[%emt 0:04:11] White is much more active.} h6 {[%emt 0:08:20]} 19. Bxf6 {[%emt 0:11:52]} Bxf6 {[%emt 0:00:47]} 20. f5 {[%emt 0:00:04]} Bg5 $2 {[%emt 0:06:15] This costs Black the game.} (20... g5 $16) 21. fxg6 $18 {[%emt 0:00:43]} fxg6 {[%emt 0:00:08]} 22. Be6+ {[%emt 0:00:03]} Kg7 {[%emt 0:01:09]} 23. h4 {[%emt 0:00:05]} Rxf1+ {[%emt 0:02:20]} (23... Bf6 $142 24. h5 (24. Nd5 Bxd5 25. exd5 e4 $16) 24... Rbe8) 24. Rxf1 {[%emt 0:00:07]} (24. Kxf1 $6 Rf8+ 25. Kg2 Be7 $16) 24... Bf6 {[%emt 0:00:06] Black is weak on the light squares} 25. Bd5 {[%emt 0:06:20] [#]} Bxa4 $2 {[%emt 0:08:14]} (25... Nf8 {was necessary.} 26. Bxc6 Qxc6) 26. Qg4 {[%emt 0:11:29]} (26. Nxa4 b5 27. Ne3 bxa4 $16) 26... Nf8 {[%emt 0:02:27] Dodges Qe6} 27. Nxa4 {[%emt 0:02:28] Excellent horsemanship.} b5 {[%emt 0:00:16]} 28. Ne3 {[%emt 0:09:04][%cal Bc4e3,Be3f5,Bf5h6,Bh6g8][%mdl 32] Nf5+ would now be deadly.} ({Not} 28. Qf3 Nh7 29. Ne3 bxa4 $18) 28... bxa4 {[%emt 0:01:32]} 29. Nf5+ {[%emt 0:00:02]} Kh7 {[%emt 0:04:11][%cal Oc5c4]} 30. Nxh6 {[%emt 0:00:02]} Qb6 {[%emt 0:07:15]} (30... Rb6) 31. Ng8 {[%emt 0:01:20]} Bg7 {[%emt 0:03:12]} 32. h5 {[%emt 0:00:17] [#]} c4+ {[%emt 0:00:49]} 33. Kh1 {[%emt 0:00:23] White threatens hxg6+ and mate.} Qe3 {[%emt 0:00:35]} 34. hxg6+ {[%emt 0:00:25] White mates.} Nxg6 {[%emt 0:00:18]} 35. Qh5+ {[%emt 0:01:03]} Bh6 {[%emt 0:00:03]} 36. Nxh6 {[%emt 0:00:20]} Nf4 {[%emt 0:01:02]} 37. gxf4 {[%emt 0:00:20] Weighted Error Value: White=0.09 (flawless) /Black=0.79  Loses game:     	---       	Black=1      Mistake:       	---       	Black=3      Inaccurate:     	White=1     	Black=5      OK:         	White=14    	Black=9      Best:        	White=2     	Black=4} 1-0

[Event "AUT Bundesliga 2024-25"]
[Site "Austria"]
[Date "2025.04.04"]
[Round "8.17"]
[White "Hinterreiter, Markus"]
[Black "Schreiner, Peter"]
[Result "1/2-1/2"]
[Annotator "RC"]
[ECO "E63"]
[WhiteElo "2236"]
[BlackElo "2425"]
[PlyCount "70"]
[EventDate "2024.08.28"]
[EventType "team-tourn"]
[EventCountry "AUT"]
[SourceTitle "playchess.com"]
[Source "ChessBase"]
[SourceQuality "1"]
[TimeControl "40/5400+30:1800+30"]

1. c4 {[%emt 0:00:02]} Nf6 {[%emt 0:02:46]} 2. g3 {[%emt 0:00:17]} g6 {[%emt 0:04:08]} 3. Bg2 {[%emt 0:00:33]} Bg7 {[%emt 0:00:07]} 4. Nc3 {[%emt 0:00:40]} O-O {[%emt 0:00:29]} 5. d4 {[%emt 0:00:53]} d6 {[%emt 0:00:33]} 6. Nf3 {[%emt 0:01:29]} Nc6 {[%emt 0:03:46]} 7. h3 {[%emt 0:03:38]} a6 {[%emt 0:05:04]} 8. O-O {[%emt 0:02:53]} Rb8 {[%emt 0:00:57]} 9. e4 {[%emt 0:03:20]} e5 {[%emt 0:10:38]} 10. d5 {[%emt 0:04:23]} Na5 {[%emt 0:05:13]} 11. Nd2 {[%emt 0:09:17]} c5 {[%emt 0:01:26]} 12. dxc6 {[%emt 0:01:54]} bxc6 {[%emt 0:02:23]} 13. b3 {[%emt 0:09:40]} c5 {[%emt 0:03:48]} 14. Nf3 {[%emt 0:07:30]} Nc6 {[%emt 0:04:36]} 15. Qd3 {[%emt 0:01:38]} Nd4 {[%emt 0:04:24]} 16. Bg5 {[%emt 0:09:08]} Qa5 {[%emt 0:12:29]} 17. Nxd4 {[%emt 0:08:03]} exd4 {[%emt 0:00:18]} 18. Nd5 {[%emt 0:00:14]} Nxd5 {[%emt 0:00:35]} 19. cxd5 {[%emt 0:00:29]} Qb6 {[%emt 0:05:48]} 20. Rfe1 {[%emt 0:02:56]} a5 {[%emt 0:02:35]} 21. Bf1 {[%emt 0:01:23]} Re8 {[%emt 0:05:09]} 22. Kh2 {[%emt 0:02:57]} Bd7 {[%emt 0:03:37]} 23. Bf4 {[%emt 0:02:46]} Be5 {[%emt 0:05:36]} 24. Bd2 {[%emt 0:07:05]} Ra8 {[%emt 0:04:57]} 25. Rab1 {[%emt 0:03:23]} Qc7 {[%emt 0:01:19]} 26. a4 {[%emt 0:01:58]} Qb6 {[%emt 0:04:27]} 27. h4 {[%emt 0:04:36]} Bg7 {[%emt 0:00:56]} 28. Bh3 {[%emt 0:02:37]} Bxh3 {[%emt 0:00:31]} 29. Kxh3 {[%emt 0:00:02]} h5 {[%emt 0:02:22]} 30. f4 {[%emt 0:01:14]} Qb7 {[%emt 0:00:49]} 31. Qf3 {[%emt 0:01:30]} Qd7+ {[%emt 0:01:15]} 32. Kg2 {[%emt 0:01:49]} c4 {[%emt 0:01:45]} 33. bxc4 {[%emt 0:00:20]} Qxa4 {[%emt 0:00:04]} 34. Qd3 {[%emt 0:01:37]} Qd7 {[%emt 0:00:32]} 35. Rb6 {[%emt 0:01:11]} a4 {[%emt 0:01:26]} 1/2-1/2

[Event "AUT Bundesliga 2024-25"]
[Site "Austria"]
[Date "2025.04.04"]
[Round "8.18"]
[White "Diermair, Andreas"]
[Black "Weber, Samuel"]
[Result "*"]
[Annotator "RC"]
[ECO "E10"]
[WhiteElo "2445"]
[BlackElo "2302"]
[PlyCount "141"]
[EventDate "2024.08.28"]
[EventType "team-tourn"]
[EventCountry "AUT"]
[SourceTitle "playchess.com"]
[Source "ChessBase"]
[SourceQuality "1"]
[TimeControl "40/5400+30:1800+30"]

1. Nf3 {[%emt 0:00:04]} Nf6 {[%emt 0:00:08]} 2. c4 {[%emt 0:00:29]} Nc6 {[%emt 0:00:32]} 3. d4 {[%emt 0:00:45]} e6 {[%emt 0:00:38]} 4. e3 {[%emt 0:03:28]} Bb4+ {[%emt 0:03:22]} 5. Nbd2 {[%emt 0:02:58]} d6 {[%emt 0:04:37]} 6. a3 {[%emt 0:03:02]} Bxd2+ {[%emt 0:01:04]} 7. Qxd2 {[%emt 0:00:53]} a5 {[%emt 0:02:15]} 8. b3 {[%emt 0:00:10]} Qe7 {[%emt 0:01:11]} 9. Bb2 {[%emt 0:09:16]} e5 {[%emt 0:03:32]} 10. Qc2 {[%emt 0:04:35]} Bg4 {[%emt 0:04:14]} 11. d5 {[%emt 0:10:24]} Nb8 {[%emt 0:03:27]} 12. Be2 {[%emt 0:02:21]} O-O {[%emt 0:08:36]} 13. h3 {[%emt 0:01:21]} Bh5 {[%emt 0:01:28]} 14. Nh4 {[%emt 0:11:32]} Bxe2 {[%emt 0:14:26]} 15. Nf5 {[%emt 0:00:13]} Qd7 {[%emt 0:00:18]} 16. Kxe2 {[%emt 0:00:05]} b5 {[%emt 0:01:42]} 17. c5 {[%emt 0:04:47]} Na6 {[%emt 0:09:16]} 18. c6 {[%emt 0:02:47]} Qd8 {[%emt 0:00:52]} 19. Rhd1 {[%emt 0:01:27]} Re8 {[%emt 0:01:58]} 20. Kf1 {[%emt 0:04:34]} Nc5 {[%emt 0:03:29]} 21. Kg1 {[%emt 0:01:00]} g6 {[%emt 0:07:15]} 22. Ng3 {[%emt 0:00:45]} h5 {[%emt 0:02:29]} 23. Ne2 {[%emt 0:06:59]} h4 {[%emt 0:04:19]} 24. f3 {[%emt 0:00:14]} Nh5 {[%emt 0:01:40]} 25. e4 {[%emt 0:02:06]} a4 {[%emt 0:02:09]} 26. b4 {[%emt 0:02:04]} Nb3 {[%emt 0:00:05]} 27. Rab1 {[%emt 0:00:14]} Qg5 {[%emt 0:00:42]} 28. Qd3 {[%emt 0:01:43]} Rab8 {[%emt 0:00:09]} 29. Bc3 {[%emt 0:03:32]} Re7 {[%emt 0:04:58]} 30. Rf1 {[%emt 0:01:00]} Nf4 {[%emt 0:05:41]} 31. Nxf4 {[%emt 0:00:06]} Qxf4 {[%emt 0:00:17]} 32. Kh1 {[%emt 0:01:29]} f6 {[%emt 0:01:03]} 33. Rbd1 {[%emt 0:00:30]} Rf7 {[%emt 0:02:09]} 34. Be1 {[%emt 0:03:00]} Qh6 {[%emt 0:00:14]} 35. Bf2 {[%emt 0:00:27]} Rff8 {[%emt 0:00:02]} 36. Ba7 {[%emt 0:02:14]} Ra8 {[%emt 0:00:05]} 37. Be3 {[%emt 0:00:24]} g5 {[%emt 0:07:11]} 38. Qxb5 {[%emt 0:02:11]} Rfb8 {[%emt 0:01:05]} 39. Qc4 {[%emt 0:00:49]} Qh7 {[%emt 0:00:47]} 40. Rf2 {[%emt 0:01:41]} Qe7 {[%emt 0:00:29]} 41. b5 {[%emt 0:34:09]} Nd4 {[%emt 0:07:54]} 42. Rb2 {[%emt 0:00:00]} Kh7 {[%emt 0:07:08]} 43. Bxd4 {[%emt 0:00:00]} exd4 {[%emt 0:01:10]} 44. Qxd4 {[%emt 0:00:00]} Rb6 {[%emt 0:01:55]} 45. Rb4 {[%emt 0:00:00]} Qe5 {[%emt 0:01:25]} 46. Qxe5 {[%emt 0:00:00]} fxe5 {[%emt 0:00:04]} 47. Rc1 {[%emt 0:00:00]} Kg6 {[%emt 0:00:19]} 48. Rcc4 {[%emt 0:00:00]} Rf8 {[%emt 0:01:27]} 49. Rb1 {[%emt 0:00:00]} Ra8 {[%emt 0:02:31]} 50. Kg1 {[%emt 0:00:00]} Kh6 {[%emt 0:02:25]} 51. Kf2 {[%emt 0:00:00]} Kh5 {[%emt 0:00:26]} 52. Rbb4 {[%emt 0:00:00]} Rf8 {[%emt 0:00:27]} 53. Ke3 {[%emt 0:00:00]} Kg6 {[%emt 0:00:43]} 54. Rxa4 {[%emt 0:00:00]} Rxb5 {[%emt 0:00:19]} 55. Rab4 {[%emt 0:00:00]} Ra5 {[%emt 0:01:08]} 56. a4 {[%emt 0:00:00]} Raa8 {[%emt 0:00:34]} 57. Rc2 {[%emt 0:00:00]} Rf7 {[%emt 0:01:46]} 58. Ra2 {[%emt 0:00:00]} Raf8 {[%emt 0:00:09]} 59. Rb1 {[%emt 0:00:00]} g4 {[%emt 0:02:39]} 60. fxg4 {[%emt 0:00:00]} Rf1 {[%emt 0:02:04]} 61. Rxf1 {[%emt 0:00:00]} Rxf1 {[%emt 0:00:12]} 62. a5 {[%emt 0:00:00]} Re1+ {[%emt 0:00:20]} 63. Kf3 {[%emt 0:00:00]} Kg5 {[%emt 0:00:33]} 64. a6 {[%emt 0:00:00]} Rf1+ {[%emt 0:00:04]} 65. Ke2 {[%emt 0:00:00]} Rf8 {[%emt 0:00:15]} 66. a7 {[%emt 0:00:00]} Ra8 {[%emt 0:00:01]} 67. Ke3 {[%emt 0:00:00]} Kg6 {[%emt 0:00:07]} 68. g3 {[%emt 0:00:00]} Kg5 {[%emt 0:00:45]} 69. Kf3 {[%emt 0:00:00]} Rf8+ {[%emt 0:00:12]} 70. Kg2 {[%emt 0:00:00]} Ra8 {[%emt 0:00:04]} 71. Ra3 {[%emt 0:00:00]} *

[Event "AUT Bundesliga 2024-25"]
[Site "Austria"]
[Date "2025.04.04"]
[Round "8.19"]
[White "Kadric, Denis"]
[Black "Dragnev, Valentin"]
[Result "1/2-1/2"]
[Annotator "TA"]
[ECO "C11"]
[WhiteElo "2533"]
[BlackElo "2538"]
[PlyCount "104"]
[EventDate "2024.08.28"]
[EventType "team-tourn"]
[EventCountry "AUT"]
[SourceTitle "playchess.com"]
[Source "ChessBase"]
[SourceQuality "1"]
[TimeControl "40/5400+30:1800+30"]

{[%evp 13,104,0,0,-25,-15,0,-9,-25,-34,-39,-32,-33,-7,-26,-14,-22,-18,-23,-20,-13,-31,-27,-27,-19,-18,-43,-13,-17,0,0,0,0,0,-44,23,0,0,0,0,0,0,-1,-22,-71,-71,-74,-76,-72,-75,-103,-96,-132,-137,-132,-124,-128,-118,-118,-120,-122,-122,-127,-117,-167,-152,-188,-185,-181,-177,-183,-183,-191,-22,-33,-12,-15,-16,-31,-33,-121,0,0,0,0,0,0,0,0,0,0,0,0,0]} 1. e4 {[%emt 0:00:02]} e6 {[%emt 0:00:06]} 2. d4 {[%emt 0:00:09]} d5 {[%emt 0:00:06]} 3. Nc3 {[%emt 0:02:00][%cal Bb1c3,Bc3e2,Be2f4][%mdl 32]} Nf6 {[%emt 0:00:14]} 4. e5 {[%emt 0:00:02]} Nfd7 {[%emt 0:00:09]} 5. Nce2 {[%emt 0:00:02]} c5 {[%emt 0:00:09]} 6. c3 {[%emt 0:00:01]} Nc6 {[%emt 0:00:08]} 7. Nf3 {[%emt 0:00:03]} Be7 {[%emt 0:00:13]} 8. h4 {[%emt 0:00:40] C11: French: Classical System: 4 e5 and 4 Bg5 dxe4.} cxd4 {[%emt 0:00:35]} 9. cxd4 {[%emt 0:00:03]} f6 {[%emt 0:00:17][%cal Bf7f6,Bf6e5,Be5e4][%mdl 32]} 10. Nf4 {[%emt 0:00:18] [#]} Ndxe5 $1 {[%emt 0:00:26]} 11. dxe5 {[%emt 0:00:03]} fxe5 {[%emt 0:00:12]} 12. Nh3 {[%emt 0:00:02]} O-O {[%emt 0:00:35][%cal Oe5e4]} 13. Be2 {[%emt 0:00:18]} e4 {[%emt 0:00:38]} 14. Nh2 $146 {[%emt 0:00:03]} (14. Nd4 e5 15. Nxc6 bxc6 16. g3 h6 17. Bg4 Ba6 18. Be2 Bc8 19. Bg4 Bb4+ 20. Kf1 {1-0 Mendes,A (2335)-Bluebaum,M (2643) Titled Tuesday intern op 04th Feb Late blitz 2025 (5)}) 14... e5 {[%emt 0:00:36][%cal Oc8h3]} 15. O-O {[%emt 0:01:05]} Bxh3 {[%emt 0:00:52]} 16. gxh3 {[%emt 0:00:03]} Bxh4 {[%emt 0:00:10]} 17. f3 $1 {[%emt 0:00:01]} exf3 {[%emt 0:00:17] White is weak on the dark squares} 18. Bxf3 {[%emt 0:01:30]} e4 {[%emt 0:00:12]} 19. Bg2 {[%emt 0:01:20]} Qd6 {[%emt 0:00:12]} 20. Kh1 {[%emt 0:03:05]} Bg3 {[%emt 0:00:26]} (20... Kh8 {is interesting.} 21. Bxe4 Bg3 22. Qxd5 Bxh2 23. Be3 Rfe8) 21. Rxf8+ {[%emt 0:12:28]} Rxf8 {[%emt 0:00:59]} 22. Nf1 {[%emt 0:00:03]} Be5 {[%emt 0:07:29]} 23. Bd2 {[%emt 0:08:26] Wards off b6} Nd4 {[%emt 0:37:22] Dodges Qb3} (23... Bxb2 $6 24. Rb1 Be5 25. Rxb7 $14) (23... Qe6 $15) 24. Bc3 {[%emt 0:15:48]} Ne6 {[%emt 0:03:46]} 25. Qd2 {[%emt 0:30:49]} Bf4 {[%emt 0:24:03]} 26. Qe2 {[%emt 0:04:46]} d4 {[%emt 0:07:09]} 27. Rd1 $1 {[%emt 0:05:06]} Qb6 $1 $36 {[%emt 0:00:25][%mdl 2048] Black has the initiative.} 28. Qxe4 {[%emt 0:07:07]} (28. Be1 $11 e3 29. Ng3) 28... dxc3 $17 {[%emt 0:00:28]} 29. bxc3 {[%emt 0:00:02]} Nc5 {[%emt 0:10:59]} 30. Qe7 {[%emt 0:07:53] [#]} Rc8 $1 {[%emt 0:00:15]} 31. Rd4 {[%emt 0:02:08]} Qc7 {[%emt 0:01:23]} 32. Qe2 {[%emt 0:00:11]} Kh8 {[%emt 0:01:34]} 33. c4 {[%emt 0:00:19]} Rf8 {[%emt 0:00:47]} 34. Rd5 {[%emt 0:00:58]} b6 {[%emt 0:00:10]} 35. Rf5 {[%emt 0:00:28][%cal Rf5f8]} Qc8 {[%emt 0:03:03]} (35... Rxf5 36. Qe8+) 36. Rxf8+ {[%emt 0:00:26]} Qxf8 {[%emt 0:00:01]} 37. Bd5 {[%emt 0:00:11]} g6 {[%emt 0:00:59]} 38. Kg2 {[%emt 0:00:34]} (38. Nd2 $17 {was necessary.}) 38... Kg7 {[%emt 0:00:16]} 39. Kf3 {[%emt 0:00:47]} Qf6 {[%emt 0:01:31]} 40. Kg2 {[%emt 0:00:38]} Qg5+ {[%emt 0:00:21]} 41. Kf2 {[%emt 0:00:38]} Be5 {[%emt 0:04:19]} 42. Qf3 {[%emt 0:03:08]} Qc1 $2 {[%emt 0:11:10]} (42... Bd4+ $19 43. Ke2 Qe7+ 44. Ne3 Na4) 43. Qf7+ $11 {[%emt 0:06:11]} Kh6 {[%emt 0:16:58]} 44. Ne3 $1 {[%emt 0:00:01]} Qd2+ {[%emt 0:00:00]} 45. Kf3 {[%emt 0:00:07] White threatens Ng4+ and mate. Really sharp!} Qc3 {[%emt 0:00:00]} ({Stronger than} 45... Qxa2 46. Ng4+ Kg5 47. Qe7+ (47. Nxe5 Qb3+ 48. Kg2 Qb2+ 49. Kg1 Qa1+ 50. Kg2 Qxe5 $17) 47... Kh5 48. Qxh7+ (48. Nxe5 Qd2 $18) 48... Kg5 49. h4+ (49. Nxe5 Qb3+ 50. Kf2 Qb2+ 51. Kg1 Qxe5 $15) 49... Kf5 50. Nh6+ Kf6 51. Qf7#) 46. Qf8+ {[%emt 0:04:37]} (46. Qxa7 $15 Bg7 47. Qc7) 46... Bg7 {[%emt 0:00:57]} (46... Kh5 $17 {...Nd7 would now be deadly.} 47. Qg8 Bg7 48. Qxh7+ Bh6) 47. Qf4+ {[%emt 0:00:05] The position is equal.} g5 $1 {[%emt 0:00:05]} 48. Qf5 {[%emt 0:00:05][%cal Oh3h4]} Bd4 $1 {[%emt 0:00:29]} 49. Qf8+ {[%emt 0:03:04]} Bg7 {[%emt 0:00:01]} 50. Qf5 {[%emt 0:00:09][%cal Oh3h4]} Bd4 $1 {[%emt 0:00:05]} 51. Qf8+ {[%emt 0:00:29]} Bg7 {[%emt 0:00:01]} 52. Qf5 {[%emt 0:00:03][%cal Oh3h4] Black must now prevent h4!.} Bd4 $1 {[%emt 0:02:52] Black had all chances to win.   Weighted Error Value: White=0.12 (very precise) /Black=0.13 (very precise)   Missed win:     	---       	Black=1      Mistake:       	White=3     	Black=2      Inaccurate:     	White=3     	Black=1      OK:         	White=13    	Black=11     Best:        	White=5     	Black=6      Strong:       	White=3     	Black=6      Brilliant:      	---       	Black=1} 1/2-1/2